[Event "44th Chess Olympiad Open 2022"]
[Site "Chennai"]
[Date "2022.08.08"]
[Round "10.75"]
[White "Altell, Majed"]
[Black "Mambe, Lobognon Anderson O"]
[Result "0-1"]
[WhiteElo "1807"]
[BlackElo "1921"]
[Annotator "NA RC"]
[PlyCount "52"]
[EventDate "2022.??.??"]
[TimeControl "60"]

1. d4 {[%emt 0:00:05]} g6 {[%emt 0:00:22]} 2. c4 {[%emt 0:00:16]} Bg7 {[%emt 0:
00:00]} 3. Nc3 {[%emt 0:00:12]} c6 {[%emt 0:00:22]} 4. Nf3 {[%emt 0:00:25]} d6
{[%emt 0:00:33]} 5. e4 {[%emt 0:00:55]} Bg4 {[%emt 0:00:14]} 6. Be2 {[%emt 0:
00:00]} Bxf3 {[%emt 0:00:31]} 7. Bxf3 {[%emt 0:00:07]} Qb6 {[%emt 0:00:10]} 8.
d5 {[%emt 0:00:43]} c5 {[%emt 0:01:01]} 9. O-O {[%emt 0:00:44]} Nd7 {[%emt 0:
00:00]} 10. Rb1 {[%emt 0:01:14]} Bxc3 {[%emt 0:00:24]} 11. bxc3 {[%emt 0:00:10]
} Qxb1 {[%emt 0:00:32]} 12. Qd2 {[%emt 0:00:46]} Qb6 {[%emt 0:00:47]} 13. h4 {
[%emt 0:00:15]} Ngf6 {[%emt 0:02:10]} 14. Re1 {[%emt 0:00:07]} Ne5 {[%emt 0:00:
00]} 15. Be2 {[%emt 0:00:07]} Nxe4 {[%emt 0:01:30]} 16. Qe3 {[%emt 0:00:18]}
Nf6 {[%emt 0:01:18]} 17. f4 {[%emt 0:00:10]} Ned7 {[%emt 0:00:50]} 18. Bg4 {
[%emt 0:00:15]} O-O-O {[%emt 0:01:17]} 19. Bh3 {[%emt 0:00:20]} h5 {[%emt 0:00:
00]} 20. Bd2 {[%emt 0:00:12]} Qa6 {[%emt 0:01:02]} 21. Qd3 {[%emt 0:00:20]}
Rde8 {[%emt 0:00:24]} 22. f5 {[%emt 0:00:37]} gxf5 {[%emt 0:03:08]} 23. Qxf5 {
[%emt 0:00:03]} Kb8 {[%emt 0:00:59]} 24. Qd3 {[%emt 0:00:28]} Ne5 {[%emt 0:00:
00]} 25. Qc2 {[%emt 0:00:32]} Qxc4 {[%emt 0:00:42]} 26. Qb2 {[%emt 0:01:12]}
Nd3 {[%emt 0:00:13]} 0-1

[Event "44th Chess Olympiad Open 2022"]
[Site "Chennai"]
[Date "2022.08.08"]
[Round "10.75"]
[White "Amako Marc Arnold"]
[Black "Miswadah, Baha"]
[Result "0-1"]
[WhiteElo "1547"]
[BlackElo "1985"]
[Annotator "NA RC"]
[PlyCount "64"]
[EventDate "2022.??.??"]
[TimeControl "60"]

1. e4 {[%emt 0:00:04]} c5 {[%emt 0:02:30]} 2. Nf3 {[%emt 0:00:14]} g6 {[%emt 0:
00:00]} 3. d4 {[%emt 0:00:11]} cxd4 {[%emt 0:00:04]} 4. Qxd4 {[%emt 0:00:08]}
Nf6 {[%emt 0:00:06]} 5. Nc3 {[%emt 0:00:05]} Nc6 {[%emt 0:00:11]} 6. Qa4 {
[%emt 0:00:08]} d6 {[%emt 0:00:20]} 7. e5 {[%emt 0:00:07]} dxe5 {[%emt 0:00:28]
} 8. Nxe5 {[%emt 0:00:09]} Qd4 {[%emt 0:00:23]} 9. Nc4 {[%emt 0:00:13]} Ng4 {
[%emt 0:13:40]} 10. Be3 {[%emt 0:00:09]} Nxe3 {[%emt 0:01:12]} 11. fxe3 {
[%emt 0:00:08]} Qd8 {[%emt 0:08:15]} 12. Rd1 {[%emt 0:08:40]} Bd7 {[%emt 0:00:
00]} 13. Nb5 {[%emt 0:02:49]} Bg7 {[%emt 0:05:00]} 14. Be2 {[%emt 0:04:35]} O-O
{[%emt 0:00:22]} 15. O-O {[%emt 0:00:18]} a6 {[%emt 0:01:11]} 16. Bg4 {[%emt 0:
00:00]} axb5 {[%emt 0:03:51]} 17. Qxb5 {[%emt 0:00:14]} f5 {[%emt 0:00:45]} 18.
Bf3 {[%emt 0:01:31]} Nd4 {[%emt 0:01:46]} 19. Qxb7 {[%emt 0:04:35]} Rb8 {
[%emt 0:02:29]} 20. Qa7 {[%emt 0:10:00]} Be6 {[%emt 0:11:57]} 21. b3 {[%emt 0:
00:00]} Bxc4 {[%emt 0:03:19]} 22. bxc4 {[%emt 0:00:17]} Nxf3+ {[%emt 0:00:10]}
23. gxf3 {[%emt 0:00:11]} Qb6 {[%emt 0:00:46]} 24. Rd7 {[%emt 0:07:46]} Qxa7 {
[%emt 0:00:35]} 25. Rxa7 {[%emt 0:00:08]} Bf6 {[%emt 0:00:22]} 26. Rd1 {
[%emt 0:02:20]} Rfc8 {[%emt 0:00:24]} 27. a4 {[%emt 0:02:45]} Rxc4 {[%emt 0:00:
00]} 28. Rd2 {[%emt 0:00:10]} f4 {[%emt 0:00:12]} 29. e4 {[%emt 0:00:28]} Bd4+
{[%emt 0:00:40]} 30. Rxd4 {[%emt 0:00:41]} Rxd4 {[%emt 0:00:06]} 31. Kg2 {
[%emt 0:00:28]} Kf7 {[%emt 0:00:32]} 32. a5 {[%emt 0:00:09]} Rb2 {[%emt 0:00:
00]} 0-1

[Event "44th Chess Olympiad Open 2022"]
[Site "Chennai"]
[Date "2022.08.08"]
[Round "10.76"]
[White "Fancy, Stuart"]
[Black "Prudente, Elmer"]
[Result "1-0"]
[WhiteElo "1984"]
[BlackElo "1995"]
[Annotator "NA RC"]
[PlyCount "103"]
[EventDate "2022.??.??"]
[TimeControl "60"]

1. Nc3 {[%emt 0:00:13]} d5 {[%emt 0:00:42]} 2. d4 {[%emt 0:00:19]} Nf6 {
[%emt 0:00:18]} 3. Bg5 {[%emt 0:00:21]} e6 {[%emt 0:00:18]} 4. e4 {[%emt 0:00:
00]} dxe4 {[%emt 0:00:18]} 5. Bxf6 {[%emt 0:00:13]} Qxf6 {[%emt 0:00:56]} 6.
Nxe4 {[%emt 0:00:11]} Qg6 {[%emt 0:01:15]} 7. Qf3 {[%emt 0:01:14]} Qh6 {
[%emt 0:05:10]} 8. Bd3 {[%emt 0:03:09]} Nc6 {[%emt 0:01:19]} 9. c3 {[%emt 0:00:
00]} Be7 {[%emt 0:05:57]} 10. Ne2 {[%emt 0:05:06]} O-O {[%emt 0:08:16]} 11. Qg3
{[%emt 0:05:50]} f5 {[%emt 0:00:26]} 12. Nd2 {[%emt 0:04:31]} Bd6 {[%emt 0:00:
00]} 13. f4 {[%emt 0:00:40]} Be7 {[%emt 0:09:33]} 14. Nf3 {[%emt 0:02:25]} Rb8
{[%emt 0:05:38]} 15. O-O {[%emt 0:02:47]} b5 {[%emt 0:00:18]} 16. b4 {[%emt 0:
00:00]} Bd6 {[%emt 0:05:14]} 17. Bc2 {[%emt 0:09:21]} Ne7 {[%emt 0:01:58]} 18.
Bb3 {[%emt 0:08:05]} Bb7 {[%emt 0:00:18]} 19. Qg5 {[%emt 0:01:29]} Qf6 {
[%emt 0:03:59]} 20. Ne5 {[%emt 0:02:55]} Rbd8 {[%emt 0:07:02]} 21. Qxf6 {
[%emt 0:09:21]} Rxf6 {[%emt 0:00:03]} 22. a4 {[%emt 0:00:12]} bxa4 {[%emt 0:00:
00]} 23. Rxa4 {[%emt 0:00:25]} a6 {[%emt 0:00:43]} 24. Bc4 {[%emt 0:02:38]} Nd5
{[%emt 0:03:55]} 25. Bxa6 {[%emt 0:03:25]} Ba8 {[%emt 0:00:15]} 26. g3 {
[%emt 0:01:04]} h5 {[%emt 0:07:22]} 27. Bb5 {[%emt 0:02:56]} Bxe5 {[%emt 0:00:
00]} 28. fxe5 {[%emt 0:00:42]} Rff8 {[%emt 0:03:46]} 29. Ra7 {[%emt 0:00:52]}
Rb8 {[%emt 0:01:41]} 30. Bc4 {[%emt 0:00:15]} h4 {[%emt 0:04:04]} 31. gxh4 {
[%emt 0:00:27]} Rb6 {[%emt 0:03:12]} 32. Kf2 {[%emt 0:02:18]} f4 {[%emt 0:00:
00]} 33. Bxd5 {[%emt 0:02:38]} Bxd5 {[%emt 0:00:02]} 34. Rxc7 {[%emt 0:00:22]}
f3 {[%emt 0:01:44]} 35. Nc1 {[%emt 0:00:26]} Ra6 {[%emt 0:00:37]} 36. Rg1 {
[%emt 0:00:40]} Rf7 {[%emt 0:00:07]} 37. Rc5 {[%emt 0:03:05]} Ra1 {[%emt 0:00:
00]} 38. c4 {[%emt 0:00:40]} Be4 {[%emt 0:00:02]} 39. d5 {[%emt 0:00:16]} Rb1 {
[%emt 0:00:30]} 40. dxe6 {[%emt 0:08:43]} Re7 {[%emt 0:00:20]} 41. Ke3 {
[%emt 0:30:42]} Bb7 {[%emt 0:09:48]} 42. Rb5 {[%emt 0:00:00]} Bc6 {[%emt 0:00:
00]} 43. Rb8+ {[%emt 0:00:00]} Kh7 {[%emt 0:00:01]} 44. Rb6 {[%emt 0:00:00]}
Rxe6 {[%emt 0:00:38]} 45. Kf4 {[%emt 0:00:00]} Rh6 {[%emt 0:01:24]} 46. b5 {
[%emt 0:02:58]} f2 {[%emt 0:20:03]} 47. Rf1 {[%emt 0:01:34]} Bg2 {[%emt 0:00:
00]} 48. Rxh6+ {[%emt 0:00:23]} Kxh6 {[%emt 0:00:02]} 49. Rxf2 {[%emt 0:00:19]}
Rxc1 {[%emt 0:00:03]} 50. Rxg2 {[%emt 0:00:07]} Rxc4+ {[%emt 0:00:10]} 51. Kf5
{[%emt 0:00:16]} Rb4 {[%emt 0:00:08]} 52. Rg6+ {[%emt 0:00:26]} 1-0

[Event "44th Chess Olympiad Open 2022"]
[Site "Chennai"]
[Date "2022.08.08"]
[Round "10.76"]
[White "Soriano, Rudolph P."]
[Black "McCoy, Tom"]
[Result "0-1"]
[WhiteElo "1824"]
[BlackElo "1812"]
[Annotator "NA RC"]
[PlyCount "134"]
[EventDate "2022.??.??"]
[TimeControl "60"]

1. Nf3 {[%emt 0:00:10]} Nf6 {[%emt 0:00:43]} 2. c4 {[%emt 0:00:16]} c5 {
[%emt 0:00:29]} 3. Nc3 {[%emt 0:00:21]} Nc6 {[%emt 0:00:09]} 4. d4 {[%emt 0:00:
00]} cxd4 {[%emt 0:00:53]} 5. Nxd4 {[%emt 0:00:25]} e5 {[%emt 0:03:42]} 6. Nb3
{[%emt 0:01:40]} Bb4 {[%emt 0:01:10]} 7. a3 {[%emt 0:02:23]} Bxc3+ {[%emt 0:00:
00]} 8. bxc3 {[%emt 0:00:17]} d5 {[%emt 0:03:45]} 9. cxd5 {[%emt 0:01:06]} Qxd5
{[%emt 0:02:00]} 10. Nd2 {[%emt 0:03:06]} Be6 {[%emt 0:05:49]} 11. Qa4 {
[%emt 0:01:59]} e4 {[%emt 0:01:59]} 12. e3 {[%emt 0:00:20]} O-O {[%emt 0:02:37]
} 13. Be2 {[%emt 0:01:49]} Rfd8 {[%emt 0:05:49]} 14. O-O {[%emt 0:07:37]} Qe5 {
[%emt 0:11:14]} 15. Rb1 {[%emt 0:07:50]} Rab8 {[%emt 0:04:36]} 16. Rd1 {
[%emt 0:09:18]} Ng4 {[%emt 0:06:37]} 17. Nf1 {[%emt 0:01:39]} Rxd1 {[%emt 0:00:
00]} 18. Bxd1 {[%emt 0:01:44]} Qxc3 {[%emt 0:04:46]} 19. Bxg4 {[%emt 0:06:26]}
Bxg4 {[%emt 0:00:31]} 20. Bb2 {[%emt 0:05:55]} Qd3 {[%emt 0:02:35]} 21. Rc1 {
[%emt 0:01:18]} Rd8 {[%emt 0:02:58]} 22. f3 {[%emt 0:09:47]} Bf5 {[%emt 0:00:
00]} 23. f4 {[%emt 0:05:45]} Be6 {[%emt 0:06:46]} 24. Bc3 {[%emt 0:05:56]} Bc4
{[%emt 0:05:54]} 25. h3 {[%emt 0:04:25]} h5 {[%emt 0:04:00]} 26. h4 {[%emt 0:
00:00]} Rd6 {[%emt 0:01:17]} 27. Qc2 {[%emt 0:03:21]} Qxc2 {[%emt 0:01:01]} 28.
Rxc2 {[%emt 0:00:14]} Rd1 {[%emt 0:00:10]} 29. Rf2 {[%emt 0:00:17]} Ne7 {
[%emt 0:00:53]} 30. Bd4 {[%emt 0:04:14]} Nf5 {[%emt 0:05:30]} 31. Bxa7 {
[%emt 0:04:53]} Ng3 {[%emt 0:00:00]} 32. Rc2 {[%emt 0:00:52]} b5 {[%emt 0:00:
00]} 33. a4 {[%emt 0:00:01]} Bd3 {[%emt 0:00:00]} 34. Rc8+ {[%emt 0:00:03]} Kh7
{[%emt 0:00:00]} 35. Kf2 {[%emt 0:00:57]} Nxf1 {[%emt 0:00:00]} 36. axb5 {
[%emt 0:00:12]} Bxb5 {[%emt 0:00:00]} 37. Rc5 {[%emt 0:00:02]} Bd3 {[%emt 0:00:
00]} 38. Rxh5+ {[%emt 0:00:24]} Kg8 {[%emt 0:00:10]} 39. Rg5 {[%emt 0:00:57]}
f6 {[%emt 0:01:29]} 40. Rg6 {[%emt 0:00:25]} Kf7 {[%emt 0:00:38]} 41. h5 {
[%emt 0:30:40]} Nd2 {[%emt 0:34:04]} 42. Bd4 {[%emt 0:02:32]} Rc1 {[%emt 0:00:
00]} 43. Kg3 {[%emt 0:00:00]} Be2 {[%emt 0:00:00]} 44. Bxf6 {[%emt 0:00:00]}
gxf6 {[%emt 0:00:00]} 45. f5 {[%emt 0:00:00]} Rc8 {[%emt 0:00:00]} 46. Kf2 {
[%emt 0:00:00]} Bxh5 {[%emt 0:00:00]} 47. Rh6 {[%emt 0:00:00]} Bg4 {[%emt 0:00:
00]} 48. Rh7+ {[%emt 0:00:00]} Ke8 {[%emt 0:00:00]} 49. Rh8+ {[%emt 0:00:00]}
Kd7 {[%emt 0:00:00]} 50. Rh7+ {[%emt 0:00:00]} Kd6 {[%emt 0:00:00]} 51. Kg3 {
[%emt 0:00:00]} Bxf5 {[%emt 0:00:00]} 52. Rh5 {[%emt 0:00:00]} Ke5 {[%emt 0:00:
00]} 53. Rh1 {[%emt 0:00:00]} Rg8+ {[%emt 0:00:00]} 54. Kf2 {[%emt 0:00:00]}
Nc4 {[%emt 0:00:00]} 55. Re1 {[%emt 0:00:00]} Nb2 {[%emt 0:00:00]} 56. Ra1 {
[%emt 0:00:00]} Nd3+ {[%emt 0:00:00]} 57. Kf1 {[%emt 0:00:00]} Rg3 {[%emt 0:00:
00]} 58. Ra5+ {[%emt 0:00:00]} Ke6 {[%emt 0:00:00]} 59. Ra6+ {[%emt 0:00:00]}
Kf7 {[%emt 0:00:00]} 60. Ra7+ {[%emt 0:00:00]} Kg6 {[%emt 0:00:00]} 61. Ra8 {
[%emt 0:00:00]} Rxe3 {[%emt 0:00:00]} 62. Kg1 {[%emt 0:00:00]} Re1+ {[%emt 0:
00:00]} 63. Kh2 {[%emt 0:00:00]} Kg5 {[%emt 0:00:00]} 64. Rg8+ {[%emt 0:00:00]}
Kf4 {[%emt 0:00:00]} 65. Rf8 {[%emt 0:00:00]} e3 {[%emt 0:00:00]} 66. Rxf6 {
[%emt 0:00:00]} e2 {[%emt 0:00:00]} 67. g3+ {[%emt 0:00:00]} Ke5 {[%emt 0:00:
00]} 0-1

[Event "44th Chess Olympiad Open 2022"]
[Site "Chennai"]
[Date "2022.08.08"]
[Round "10.76"]
[White "Jones, Rupert"]
[Black "Estur, Gavino Aguilar"]
[Result "1-0"]
[WhiteElo "1766"]
[BlackElo "1598"]
[Annotator "NA RC"]
[PlyCount "151"]
[EventDate "2022.??.??"]
[TimeControl "60"]

1. e4 {[%emt 0:00:03]} e5 {[%emt 0:00:10]} 2. Nf3 {[%emt 0:00:19]} Nc6 {
[%emt 0:00:19]} 3. Bb5 {[%emt 0:00:26]} d6 {[%emt 0:00:31]} 4. c3 {[%emt 0:00:
00]} Bd7 {[%emt 0:02:10]} 5. d3 {[%emt 0:00:53]} h6 {[%emt 0:00:55]} 6. Be3 {
[%emt 0:03:02]} a6 {[%emt 0:04:13]} 7. Ba4 {[%emt 0:00:05]} Nf6 {[%emt 0:00:55]
} 8. h3 {[%emt 0:01:19]} Be7 {[%emt 0:01:04]} 9. Nbd2 {[%emt 0:01:45]} b5 {
[%emt 0:05:01]} 10. Bb3 {[%emt 0:01:13]} Na5 {[%emt 0:01:42]} 11. Bc2 {[%emt 0:
00:00]} O-O {[%emt 0:04:30]} 12. O-O {[%emt 0:03:38]} c5 {[%emt 0:03:01]} 13.
d4 {[%emt 0:11:08]} Qc7 {[%emt 0:05:51]} 14. Rc1 {[%emt 0:06:32]} Rac8 {
[%emt 0:03:31]} 15. b4 {[%emt 0:07:55]} cxb4 {[%emt 0:05:50]} 16. cxb4 {
[%emt 0:00:08]} Nb7 {[%emt 0:00:42]} 17. Bb1 {[%emt 0:07:16]} Qb8 {[%emt 0:00:
00]} 18. Qb3 {[%emt 0:03:33]} a5 {[%emt 0:12:49]} 19. a3 {[%emt 0:02:12]} axb4
{[%emt 0:01:12]} 20. axb4 {[%emt 0:00:18]} Nh7 {[%emt 0:07:27]} 21. Rfd1 {
[%emt 0:07:16]} Be6 {[%emt 0:04:32]} 22. Qb2 {[%emt 0:06:26]} Rxc1 {[%emt 0:00:
00]} 23. Rxc1 {[%emt 0:00:39]} Bf6 {[%emt 0:01:42]} 24. Nh2 {[%emt 0:08:32]}
Bg5 {[%emt 0:04:51]} 25. Bxg5 {[%emt 0:01:37]} Nxg5 {[%emt 0:01:57]} 26. h4 {
[%emt 0:01:08]} Nh7 {[%emt 0:01:04]} 27. Ndf3 {[%emt 0:03:21]} f6 {[%emt 0:00:
00]} 28. Bd3 {[%emt 0:06:20]} Bd7 {[%emt 0:04:23]} 29. Qa2+ {[%emt 0:04:31]}
Kh8 {[%emt 0:06:52]} 30. Qa6 {[%emt 0:03:40]} Nd8 {[%emt 0:05:34]} 31. d5 {
[%emt 0:01:20]} Nf7 {[%emt 0:01:53]} 32. Nd2 {[%emt 0:01:11]} Rd8 {[%emt 0:00:
00]} 33. Nb3 {[%emt 0:00:24]} Nf8 {[%emt 0:00:24]} 34. Na5 {[%emt 0:00:22]} Qa8
{[%emt 0:01:36]} 35. Bxb5 {[%emt 0:02:39]} Bxb5 {[%emt 0:00:13]} 36. Qxb5 {
[%emt 0:00:10]} Rb8 {[%emt 0:00:37]} 37. Qc4 {[%emt 0:02:08]} Nd7 {[%emt 0:00:
00]} 38. Nc6 {[%emt 0:00:38]} Rb6 {[%emt 0:00:25]} 39. Qc3 {[%emt 0:01:42]} Kh7
{[%emt 0:00:32]} 40. Ra1 {[%emt 0:01:29]} Qc8 {[%emt 0:00:35]} 41. Qa3 {
[%emt 0:03:47]} Nd8 {[%emt 0:01:05]} 42. Nxd8 {[%emt 0:05:02]} Qxd8 {[%emt 0:
00:00]} 43. Nf1 {[%emt 0:01:24]} Qb8 {[%emt 0:00:55]} 44. Qa7 {[%emt 0:05:22]}
Qxa7 {[%emt 0:00:43]} 45. Rxa7 {[%emt 0:00:02]} Nb8 {[%emt 0:00:17]} 46. Ra4 {
[%emt 0:01:27]} Na6 {[%emt 0:00:05]} 47. Ne3 {[%emt 0:03:02]} Nxb4 {[%emt 0:00:
00]} 48. Nc4 {[%emt 0:00:11]} Rb8 {[%emt 0:00:43]} 49. Nxd6 {[%emt 0:00:31]}
Nd3 {[%emt 0:00:42]} 50. Ra1 {[%emt 0:02:48]} h5 {[%emt 0:01:08]} 51. Nf5 {
[%emt 0:00:20]} Nc5 {[%emt 0:00:55]} 52. f3 {[%emt 0:00:22]} Rd8 {[%emt 0:00:
00]} 53. Ra5 {[%emt 0:00:40]} Nd7 {[%emt 0:00:02]} 54. Ra7 {[%emt 0:00:39]} Kg8
{[%emt 0:00:10]} 55. Ne7+ {[%emt 0:01:24]} Kf8 {[%emt 0:01:08]} 56. Nc6 {
[%emt 0:00:08]} Ke8 {[%emt 0:00:19]} 57. Nxd8 {[%emt 0:00:06]} Kxd8 {[%emt 0:
00:00]} 58. Kf2 {[%emt 0:00:59]} Ke7 {[%emt 0:00:27]} 59. Ke3 {[%emt 0:00:23]}
Kd6 {[%emt 0:00:32]} 60. Kd2 {[%emt 0:01:31]} Ke7 {[%emt 0:00:08]} 61. Ke3 {
[%emt 0:02:47]} Ke8 {[%emt 0:00:19]} 62. g3 {[%emt 0:00:27]} Ke7 {[%emt 0:00:
00]} 63. f4 {[%emt 0:01:30]} exf4+ {[%emt 0:00:21]} 64. Kxf4 {[%emt 0:00:33]}
g6 {[%emt 0:00:26]} 65. Rxd7+ {[%emt 0:01:55]} Kxd7 {[%emt 0:00:13]} 66. e5 {
[%emt 0:01:20]} fxe5+ {[%emt 0:01:12]} 67. Kxe5 {[%emt 0:00:00]} Ke7 {[%emt 0:
00:00]} 68. d6+ {[%emt 0:00:00]} Kd7 {[%emt 0:00:22]} 69. Kd5 {[%emt 0:00:00]}
Kd8 {[%emt 0:00:20]} 70. Ke6 {[%emt 0:00:00]} Ke8 {[%emt 0:00:05]} 71. Kf6 {
[%emt 0:00:43]} Kd7 {[%emt 0:00:06]} 72. Kxg6 {[%emt 0:00:27]} Kxd6 {[%emt 0:
00:00]} 73. Kxh5 {[%emt 0:00:08]} Ke7 {[%emt 0:00:13]} 74. Kg6 {[%emt 0:00:34]}
Kf8 {[%emt 0:00:10]} 75. Kh7 {[%emt 0:00:47]} Kf7 {[%emt 0:00:04]} 76. g4 {
[%emt 0:00:11]} 1-0

[Event "44th Chess Olympiad Open 2022"]
[Site "Chennai"]
[Date "2022.08.08"]
[Round "10.77"]
[White "Martyr, Reginald"]
[Black "Nevska, Gerda"]
[Result "1-0"]
[WhiteElo "2194"]
[BlackElo "1840"]
[Annotator "RC"]
[PlyCount "134"]
[EventDate "2022.??.??"]
[TimeControl "60"]

1. Nf3 {[%emt 0:00:09]} c5 {[%emt 0:01:01]} 2. b3 {[%emt 0:00:46]} Nf6 {
[%emt 0:00:30]} 3. Bb2 {[%emt 0:00:10]} g6 {[%emt 0:00:14]} 4. c4 {[%emt 0:00:
00]} Nc6 {[%emt 0:02:04]} 5. g3 {[%emt 0:01:13]} Bg7 {[%emt 0:00:11]} 6. Bg2 {
[%emt 0:00:04]} O-O {[%emt 0:00:18]} 7. O-O {[%emt 0:00:02]} d6 {[%emt 0:00:16]
} 8. d4 {[%emt 0:06:33]} cxd4 {[%emt 0:07:43]} 9. Nxd4 {[%emt 0:00:10]} Bd7 {
[%emt 0:02:57]} 10. Nc3 {[%emt 0:08:27]} Nxd4 {[%emt 0:02:23]} 11. Qxd4 {
[%emt 0:00:07]} Bc6 {[%emt 0:00:09]} 12. Nd5 {[%emt 0:03:54]} Nh5 {[%emt 0:00:
00]} 13. Qd2 {[%emt 0:01:18]} Bxb2 {[%emt 0:00:32]} 14. Qxb2 {[%emt 0:00:11]}
e6 {[%emt 0:00:16]} 15. Nc3 {[%emt 0:01:22]} Bxg2 {[%emt 0:00:25]} 16. Kxg2 {
[%emt 0:00:05]} Qb6 {[%emt 0:10:46]} 17. Rad1 {[%emt 0:02:55]} f5 {[%emt 0:00:
00]} 18. e3 {[%emt 0:10:03]} Rad8 {[%emt 0:05:09]} 19. Rd4 {[%emt 0:15:00]} Rd7
{[%emt 0:00:36]} 20. Qe2 {[%emt 0:05:28]} Qc6+ {[%emt 0:04:16]} 21. Qf3 {
[%emt 0:01:30]} a6 {[%emt 0:05:32]} 22. Qxc6 {[%emt 0:10:37]} bxc6 {[%emt 0:00:
00]} 23. Rfd1 {[%emt 0:00:08]} Rfd8 {[%emt 0:01:28]} 24. c5 {[%emt 0:01:38]} d5
{[%emt 0:01:52]} 25. Rb4 {[%emt 0:00:32]} a5 {[%emt 0:01:16]} 26. Rb6 {[%emt 0:
00:00]} Rc7 {[%emt 0:02:19]} 27. Ra6 {[%emt 0:00:20]} e5 {[%emt 0:00:07]} 28.
Rxa5 {[%emt 0:03:20]} Nf6 {[%emt 0:04:23]} 29. Ne2 {[%emt 0:09:24]} Rdd7 {
[%emt 0:01:11]} 30. b4 {[%emt 0:01:13]} Ra7 {[%emt 0:03:56]} 31. Rxa7 {[%emt 0:
00:00]} Rxa7 {[%emt 0:00:04]} 32. Rd2 {[%emt 0:00:22]} Ne8 {[%emt 0:02:32]} 33.
Nc1 {[%emt 0:01:12]} Kf7 {[%emt 0:01:33]} 34. Nb3 {[%emt 0:04:12]} Ke6 {
[%emt 0:02:57]} 35. Na5 {[%emt 0:00:05]} Kd7 {[%emt 0:01:03]} 36. a4 {[%emt 0:
00:00]} Nc7 {[%emt 0:00:28]} 37. Nc4 {[%emt 0:01:17]} Ke6 {[%emt 0:00:39]} 38.
Nb6 {[%emt 0:00:01]} Na6 {[%emt 0:03:39]} 39. Rb2 {[%emt 0:00:01]} d4 {[%emt 0:
00:00]} 40. exd4 {[%emt 0:00:19]} exd4 {[%emt 0:00:07]} 41. Kf3 {[%emt 0:31:27]
} Ke5 {[%emt 0:40:23]} 42. Ke2 {[%emt 0:00:44]} Nc7 {[%emt 0:01:44]} 43. Kd3 {
[%emt 0:00:50]} Ne6 {[%emt 0:01:55]} 44. f4+ {[%emt 0:00:51]} Kf6 {[%emt 0:00:
00]} 45. Kc4 {[%emt 0:00:29]} g5 {[%emt 0:00:33]} 46. fxg5+ {[%emt 0:03:26]}
Kxg5 {[%emt 0:00:37]} 47. b5 {[%emt 0:00:00]} cxb5+ {[%emt 0:00:00]} 48. axb5 {
[%emt 0:00:00]} d3 {[%emt 0:00:00]} 49. Rd2 {[%emt 0:00:00]} Kg4 {[%emt 0:00:
00]} 50. Rxd3 {[%emt 0:00:00]} Ra2 {[%emt 0:00:00]} 51. Kd5 {[%emt 0:00:00]} f4
{[%emt 0:00:00]} 52. Kxe6 {[%emt 0:00:00]} f3 {[%emt 0:00:00]} 53. Rxf3 {
[%emt 0:00:00]} Kxf3 {[%emt 0:00:00]} 54. c6 {[%emt 0:00:00]} Rc2 {[%emt 0:00:
00]} 55. Kd6 {[%emt 0:00:00]} Rd2+ {[%emt 0:00:00]} 56. Ke7 {[%emt 0:00:00]}
Rc2 {[%emt 0:00:00]} 57. Kd7 {[%emt 0:00:00]} Rd2+ {[%emt 0:00:00]} 58. Kc8 {
[%emt 0:00:00]} Rb2 {[%emt 0:00:00]} 59. c7 {[%emt 0:03:11]} Rxb5 {[%emt 0:00:
00]} 60. Kd7 {[%emt 0:00:51]} Rc5 {[%emt 0:00:00]} 61. c8=Q {[%emt 0:00:16]}
Rxc8 {[%emt 0:00:00]} 62. Nxc8 {[%emt 0:00:16]} h5 {[%emt 0:00:00]} 63. Ne7 {
[%emt 0:02:24]} Kg2 {[%emt 0:00:00]} 64. Nf5 {[%emt 0:00:22]} Kxh2 {[%emt 0:00:
00]} 65. Ke6 {[%emt 0:00:14]} Kh3 {[%emt 0:00:00]} 66. Kf6 {[%emt 0:00:23]} Kg4
{[%emt 0:00:00]} 67. Kg6 {[%emt 0:00:08]} Kf3 {[%emt 0:00:55]} 1-0

[Event "44th Chess Olympiad Open 2022"]
[Site "Chennai"]
[Date "2022.08.08"]
[Round "10.77"]
[White "Brookfield, Toby"]
[Black "Sixtus Gabriel"]
[Result "1-0"]
[WhiteElo "1815"]
[BlackElo "1787"]
[Annotator "NA RC"]
[PlyCount "117"]
[EventDate "2022.??.??"]
[TimeControl "60"]

1. e4 {[%emt 0:00:05]} g6 {[%emt 0:00:08]} 2. Nc3 {[%emt 0:00:21]} Bg7 {
[%emt 0:00:15]} 3. Bc4 {[%emt 0:00:39]} d6 {[%emt 0:00:45]} 4. d3 {[%emt 0:00:
00]} Nf6 {[%emt 0:00:32]} 5. f4 {[%emt 0:00:10]} c6 {[%emt 0:00:42]} 6. Bb3 {
[%emt 0:00:06]} Nbd7 {[%emt 0:01:18]} 7. Nf3 {[%emt 0:00:15]} Nc5 {[%emt 0:00:
00]} 8. O-O {[%emt 0:00:46]} O-O {[%emt 0:01:05]} 9. Qe1 {[%emt 0:01:34]} Nxb3
{[%emt 0:00:53]} 10. axb3 {[%emt 0:00:09]} Nd7 {[%emt 0:02:48]} 11. f5 {
[%emt 0:03:58]} Ne5 {[%emt 0:04:47]} 12. Qh4 {[%emt 0:00:34]} e6 {[%emt 0:00:
00]} 13. Bg5 {[%emt 0:07:40]} f6 {[%emt 0:00:00]} 14. Be3 {[%emt 0:01:13]} exf5
{[%emt 0:00:00]} 15. Nxe5 {[%emt 0:23:15]} fxe5 {[%emt 0:00:00]} 16. Qxd8 {
[%emt 0:01:16]} Rxd8 {[%emt 0:00:00]} 17. Bxa7 {[%emt 0:00:52]} Be6 {[%emt 0:
00:00]} 18. Bb6 {[%emt 0:02:39]} Rdc8 {[%emt 0:01:50]} 19. Bf2 {[%emt 0:03:56]}
d5 {[%emt 0:06:47]} 20. Na4 {[%emt 0:03:08]} Bf8 {[%emt 0:06:10]} 21. exf5 {
[%emt 0:00:55]} gxf5 {[%emt 0:00:43]} 22. Rae1 {[%emt 0:02:26]} Bg7 {[%emt 0:
00:00]} 23. Nb6 {[%emt 0:00:49]} e4 {[%emt 0:00:18]} 24. c3 {[%emt 0:06:23]}
Bf6 {[%emt 0:04:24]} 25. b4 {[%emt 0:03:45]} h5 {[%emt 0:00:48]} 26. Nxc8 {
[%emt 0:02:30]} Rxc8 {[%emt 0:01:18]} 27. dxe4 {[%emt 0:00:09]} dxe4 {[%emt 0:
00:00]} 28. Bb6 {[%emt 0:00:27]} Kg7 {[%emt 0:00:32]} 29. Ra1 {[%emt 0:01:15]}
Re8 {[%emt 0:02:21]} 30. Ra7 {[%emt 0:05:09]} Bc8 {[%emt 0:01:08]} 31. Be3 {
[%emt 0:00:31]} Rd8 {[%emt 0:02:10]} 32. Kf2 {[%emt 0:01:03]} Be5 {[%emt 0:00:
00]} 33. g3 {[%emt 0:01:57]} Kf6 {[%emt 0:01:54]} 34. Raa1 {[%emt 0:03:42]} h4
{[%emt 0:01:55]} 35. gxh4 {[%emt 0:04:40]} f4 {[%emt 0:00:28]} 36. Ke1 {
[%emt 0:00:36]} f3 {[%emt 0:02:49]} 37. Bg5+ {[%emt 0:00:25]} Kf5 {[%emt 0:00:
00]} 38. Bxd8 {[%emt 0:00:09]} Bxh2 {[%emt 0:00:14]} 39. Kf2 {[%emt 0:02:14]}
Kg4 {[%emt 0:00:18]} 40. Bg5 {[%emt 0:01:59]} Be6 {[%emt 0:01:23]} 41. Ke3 {
[%emt 0:32:29]} Bd5 {[%emt 0:32:39]} 42. b3 {[%emt 0:10:14]} Bc7 {[%emt 0:00:
00]} 43. Be7 {[%emt 0:01:52]} Bf4+ {[%emt 0:00:08]} 44. Kd4 {[%emt 0:00:00]}
Kf5 {[%emt 0:00:00]} 45. c4 {[%emt 0:00:00]} Be5+ {[%emt 0:00:00]} 46. Ke3 {
[%emt 0:00:00]} Bf4+ {[%emt 0:00:00]} 47. Kd4 {[%emt 0:00:00]} Be5+ {[%emt 0:
00:00]} 48. Kc5 {[%emt 0:00:00]} Bf7 {[%emt 0:00:00]} 49. Bg5 {[%emt 0:00:00]}
b5 {[%emt 0:00:00]} 50. Ra7 {[%emt 0:00:00]} Bh5 {[%emt 0:00:00]} 51. Kxc6 {
[%emt 0:00:00]} Bd4 {[%emt 0:00:00]} 52. Rh7 {[%emt 0:00:00]} Bg4 {[%emt 0:00:
00]} 53. Rf7+ {[%emt 0:00:00]} Ke6 {[%emt 0:00:00]} 54. Rf4 {[%emt 0:00:00]}
Bf5 {[%emt 0:00:00]} 55. Rxf5 {[%emt 0:00:00]} Kxf5 {[%emt 0:00:00]} 56. c5 {
[%emt 0:00:00]} Kg4 {[%emt 0:00:00]} 57. Kb7 {[%emt 0:00:00]} f2 {[%emt 0:00:
00]} 58. c6 {[%emt 0:00:00]} Kf3 {[%emt 0:00:00]} 59. c7 {[%emt 0:00:00]} 1-0